Cogmind - Beta 11.1 @@@ ROGUE MODE // 2022.06.20 @ 01:03:02 Player: Jezoensis Result: Destroyed by Y-72 Warden with Railgun Performance ------------- Evolutions (6) 3000 Regions Visited (14) 2800 Robots Destroyed (153) 765 Value Destroyed (5956) 5956 Prototype IDs (33) 660 Alien Tech Used (0) 0 Bonus (3546) 3546 TOTAL SCORE: 16727 Bonus ------- High Alert Combat Kills 292 Entered DSFs 500 Aligned with FarCom 300 Met Warlord at Base 500 MAIN.C Attacked Warlord 500 Warlord Defense Kills 1652 Friendly Fire -198 Cogmind --------- Core Integrity 0/1150 Matter 116/300 Energy 80/100 System Corruption 10% Temperature Cool (38) Movement Rolling (90) Location -4/Factory Parts ------- > --- POWER (1) -------- (None) > --- PROPULSION (5) --- Centrium Wheel Gyrokinetic Inverter Gyrokinetic Inverter > --- UTILITY (8) ------ Terrain Scan Processor Improved Salvage Targeting Computer Advanced Salvage Targeting Computer Advanced Salvage Targeting Computer Advanced Targeting Computer Launcher Guidance Computer Launcher Guidance Computer Hacking Suite > --- WEAPON (5) ------- Heavy Machine Gun Heavy Machine Gun Hypervelocity Coil Gun > --- INVENTORY (5) ---- Huge Storage Unit Matter Compressor (250) Advanced Terrain Scanner Improved Salvage Targeting Computer Long-range Tractor Beam Peak State ------------ > --- POWER ------------ Neutrino Core > --- PROPULSION ------- Improved Treads Medium Treads Armored Medium Treads Heavy Treads > --- UTILITY ---------- Huge Storage Unit Visual Processing Unit Terrain Scan Processor Improved Salvage Targeting Computer Advanced Targeting Computer Improved Transmission Jammer Focal Shield Advanced System Shield > --- WEAPON ----------- Vortex Shotgun Vortex Shotgun Coil Gun XL Autogun Subcomponent KE Penetrator > --- INVENTORY -------- Antimatter Reactor Improved Treads Medium Treads Medium Treads Improved Cooling System High-capacity Storage Unit Matter Compressor Matter Compressor Improved Trap Scanner Advanced Terrain Scanner Advanced Terrain Scanner Improved Salvage Targeting Computer Improved Target Analyzer Improved Kinecellerator Weapon Cycler Weapon Cycler Advanced Shield Generator Advanced Shield Generator Long-range Tractor Beam Phase Cannon Gauss Rifle XL Autogun Subcomponent XL Autogun Subcomponent [Rating: 104] Favorites ----------- Power Neutrino Core Engine Angular Momentum Engine Power Core Neutrino Core Reactor Antimatter Reactor Propulsion Medium Treads Treads Medium Treads Wheel Wheel Hover Unit Gyrokinetic Inverter Utility Terrain Scan Processor Device Improved Terrain Scanner Storage High-capacity Storage Unit Processor Terrain Scan Processor Hackware Advanced System Shield Protection Layered Light Armor Plating Weapon XL Autogun Subcomponent Energy Gun Arc Projector Energy Cannon Phase Cannon Ballistic Gun XL Autogun Subcomponent Ballistic Cannon Antimatter Cannon Launcher Rocket Launcher Special Weapon Mining Laser Impact Weapon Maul Build | -11 -10 -10 -10 -9 -8 -7 -7 -6 -5 -5 -5 -5 -4 -4 ------- Run | Scr Mat Min Exi Min Mat Fac DSF Fac Fac Upp Upp War Pro Fac Slots Evolved 12 | . . . . . 4 2 . 2 2 . . . . 2 Power . | . . . . . . . . . . . . . . . Propulsion 3 | . . . . . 1 . . . 1 . . . . 1 Utility 6 | . . . . . 2 1 . 1 1 . . . . 1 Weapon 3 | . . . . . 1 1 . 1 . . . . . . Parts Attached 332 | 7 16 . 2 6 36 8 29 47 69 11 14 20 19 48 Power 11 | 1 1 . . . 1 . 1 1 3 . . 2 . 1 Engine 4 | 1 1 . . . . . 1 1 . . . . . . Core 5 | . . . . . 1 . . . 3 . . 1 . . Reactor 2 | . . . . . . . . . . . . 1 . 1 Propulsion 51 | 2 4 . . 3 8 1 11 . 7 1 1 1 . 12 Treads 35 | . 2 . . 1 5 . 9 . 7 1 1 1 . 8 Leg . | . . . . . . . . . . . . . . . Wheel 13 | 2 2 . . 2 3 1 2 . . . . . . 1 Hover 3 | . . . . . . . . . . . . . . 3 Flight . | . . . . . . . . . . . . . . . Utility 162 | 2 4 . 1 . 11 3 14 29 39 8 6 12 15 18 Device 135 | 1 3 . . . 6 2 10 27 35 8 6 12 14 11 Storage 4 | 1 . . 1 . 1 . . . 1 . . . . . Processor 16 | . 1 . . . 1 1 3 1 3 . . . 1 5 Hackware 3 | . . . . . . . . 1 . . . . . 2 Protection 4 | . . . . . 3 . 1 . . . . . . . Artifact . | . . . . . . . . . . . . . . . Weapon 108 | 2 7 . 1 3 16 4 3 17 20 2 7 5 4 17 Energy Gun 17 | . 4 . . 1 4 2 1 . . . . 1 . 4 Energy Cannon 20 | . . . . . . . . 4 7 1 2 1 2 3 Ballistic Gun 55 | 2 2 . . 2 8 . 1 6 13 1 5 3 2 10 Ballistic Cannon 4 | . . . . . . . . 4 . . . . . . Launcher 1 | . . . . . 1 . . . . . . . . . Special Weapon 2 | . 1 . 1 . . . . . . . . . . . Impact Weapon 9 | . . . . . 3 2 1 3 . . . . . . Slashing Weapon . | . . . . . . . . . . . . . . . Piercing Weapon . | . . . . . . . . . . . . . . . Special Melee Weapon . | . . . . . . . . . . . . . . . Unidentified Prototypes 6 | . . . . . . 1 . 1 1 . . 3 . . Parts Lost 35 | . 1 . . 1 1 . 1 . 4 . . 1 . 26 Power 3 | . 1 . . . . . . . 1 . . . . 1 Propulsion 13 | . . . . 1 1 . . . 2 . . . . 9 Utility 7 | . . . . . . . . . 1 . . . . 6 Weapon 12 | . . . . . . . 1 . . . . 1 . 10 Highest Loss Streak 20 | . 1 . . 1 1 . 1 . 1 . . 1 . 20 To Critical Strikes 1 | . . . . . . . . . . . . . . 1 Average Slot Usage (%) 89 | . 98 100 79 100 99 100 99 83 84 94 94 93 94 77 Engine 2 | . 13 14 14 14 . . 1 6 1 . . . . . Core 3 | . . . . . 8 7 5 . 3 5 5 5 5 3 Treads 15 | . 2 . . . 7 7 18 20 20 17 17 17 17 15 Wheel 4 | . 25 28 28 27 19 15 3 . . . . . . . Device 12 | . 13 14 14 14 8 13 8 12 16 11 11 11 11 7 Storage 6 | . 14 14 14 14 9 7 7 6 5 5 5 5 5 3 Processor 17 | . . . . . 9 8 18 20 17 23 23 23 23 22 Protection 1 | . . . . . 9 7 3 . . . . . . . Energy Gun 1 | . 5 14 4 9 8 . 6 1 . . . . . 1 Energy Cannon 1 | . . . . . . . . 2 3 . . . 1 1 Ballistic Gun 17 | . 19 14 1 18 16 23 22 9 11 29 28 28 27 15 Naked Turns . | . . . . . . . . . . . . . . . Heaviest Build 128 | 11 15 15 26 30 64 63 63 78 124 119 124 125 126 128 Greatest Support 148 | 20 20 20 20 20 32 22 84 84 126 125 125 125 125 148 Greatest Overweight (x) 2 | . . . 1 1 2 2 2 . . . . . 1 1 Average Overweight (x) . | . . . . 1 1 2 . . . . . . . . Largest Inventory Capacity 25 | 8 8 8 15 15 20 20 20 20 25 25 25 25 25 25 Average Capacity 20 | 7 8 8 13 15 19 20 20 20 21 25 25 25 25 18 Most Carried 25 | 7 8 8 14 15 20 20 20 20 25 25 25 25 25 25 Average Carried 20 | 4 7 8 10 13 18 19 19 19 20 25 25 24 24 17 Final Capacity 25 | 8 8 8 15 15 20 20 20 20 25 25 25 25 25 5 Final Carried 25 | 7 8 8 14 15 20 20 20 20 25 25 25 25 25 5 Class Distribution -------------------- 33% | Scavenger-Skirmisher 30% | Mutant 11% | Skirmisher 8% | Scavenger-Assassin 6% | Scavenger-Mutant 4% | Scavenger-Gunner 4% | Assassin Dominant Class ---------------- Mutant | -10/Materials Mutant | -10/Mines Mutant | -10/Exiles Skirmisher | -9/Mines Scavenger-Skirmisher | -8/Materials Scavenger-Assassin | -7/Factory Assassin | -7/DSF Mutant | -6/Factory Mutant | -5/Factory Scavenger-Skirmisher | -5/Upper Caves Scavenger-Skirmisher | -5/Upper Caves Scavenger-Skirmisher | -5/Warlord Scavenger-Skirmisher | -4/Proximity Caves Mutant | -4/Factory Resources | -11 -10 -10 -10 -9 -8 -7 -7 -6 -5 -5 -5 -5 -4 -4 ----------- Run | Scr Mat Min Exi Min Mat Fac DSF Fac Fac Upp Upp War Pro Fac Matter Collected 7490 | 275 214 27 20 68 681 . 560 1185 1843 269 223 671 684 770 Remotely 3444 | . . . . . . . 541 796 604 180 108 443 664 108 Salvage Created 7459 | 64 229 52 . 87 512 . 488 1131 1560 224 200 1011 664 1237 Parts 421 | 9 14 6 . 14 37 . 23 50 92 13 15 54 30 64 Haulers Intercepted 5 | . 2 . . . 2 . . . 1 . . . . . Recyclers Shooed 6 | 2 . . . . . . . 1 2 . . . . 1 Parts Field Recycled . | . . . . . . . . . . . . . . . Retrieved Matter . | . . . . . . . . . . . . . . . Parts Self-Destructed 57 | . . . . . . . . . . 13 14 . 30 . Prevented 1 | . . . . . . . . . . 1 . . . . Kills | -11 -10 -10 -10 -9 -8 -7 -7 -6 -5 -5 -5 -5 -4 -4 ------- Run | Scr Mat Min Exi Min Mat Fac DSF Fac Fac Upp Upp War Pro Fac Combat Hostiles Destroyed 112 | . 5 3 . 3 9 . 7 17 16 8 3 14 8 19 Guns 108 | . 5 3 . 3 6 . 7 17 16 8 3 14 8 18 AOE 4 | . . . . . 3 . . . . . . . . 1 Classes Destroyed 18 | 1 3 . . 2 2 . 1 4 . . 2 3 . . Worker 10 | . . . . 1 1 . . 2 5 . . . . 1 Builder 6 | . . . . 1 . . . 1 2 . . . . 2 Tunneler 4 | 3 . . . . . . . . 1 . . . . . Hauler 5 | . 2 . . . 2 . . . 1 . . . . . Recycler 5 | . . . . . 1 . . 2 1 . . . . 1 Operator 3 | . . . . . . . . 2 1 . . . . . Watcher 7 | . . . . . . . . 3 4 . . . . . Swarmer 35 | . 3 3 . 3 4 . . 7 . 8 . 1 . 6 Grunt 36 | . 2 . . . 1 . 6 6 5 . . 6 7 3 Brawler 2 | . . . . . . . . 1 . . . . . 1 Duelist 1 | . . . . . . . . . . . 1 . . . Protector 4 | . . . . . . . . . . . . 4 . . Sentry 12 | . . . . . 4 . . 1 5 . . . . 2 Hunter 8 | . . . . . . . . . . . 2 . . 6 Programmer 11 | . . . . . . . . 2 6 . . 2 1 . Heavy 2 | . . . . . . . 1 . . . . . . 1 Striker 1 | . . . . . . . . . . . . 1 . . Mutant 1 | . . . . . . . . . . . . 1 . . Best Kill Streak 9 | 2 3 3 . 3 4 . 4 7 5 4 2 6 3 9 Combat Bots Only 8 | . 3 3 . 3 4 . 4 5 4 4 2 6 3 8 Max Kills in Single Turn 3 | 1 1 1 . 2 3 . 1 2 3 2 2 2 1 2 Gunslinging 1 | . . . . 1 . . . 1 . 1 1 . . . Exploded 3 | . . . . . 3 . . . . . . . . 1 Melee . | . . . . . . . . . . . . . . . Uniques/NPCs Destroyed . | . . . . . . . . . . . . . . . Combat | -11 -10 -10 -10 -9 -8 -7 -7 -6 -5 -5 -5 -5 -4 -4 -------- Run | Scr Mat Min Exi Min Mat Fac DSF Fac Fac Upp Upp War Pro Fac Damage Taken 9713 | . 359 71 . 118 476 . 683 536 1049 113 255 329 539 5185 Core 1553 | . 97 16 . 20 32 . 52 46 41 . . 39 48 1162 Absorbed by Shields 867 | . . . . . . . . 94 110 42 93 124 201 203 Reduced by Siege Mode 98 | . . . . . . . . . . . . 15 22 61 Core Remaining (%) 85 | 100 . . . 46 94 . 92 94 . . . . 87 . Volleys Fired 374 | 7 36 7 . 9 28 . 18 58 88 8 10 26 32 47 Largest 5 | 2 2 2 . 2 3 . 4 5 5 5 5 5 5 5 Hottest 203 | 40 100 60 . 60 133 . 124 147 113 126 126 139 136 203 Shots Fired 1054 | 14 69 14 . 18 78 . 72 104 198 36 30 130 100 191 Gun 945 | 14 66 14 . 18 77 . 72 72 155 35 25 130 85 182 Cannon 105 | . . . . . . . . 32 43 1 5 . 15 9 Launcher 1 | . . . . . 1 . . . . . . . . . Special 3 | . 3 . . . . . . . . . . . . . Kinetic 849 | 14 52 7 . 13 51 . 54 74 155 35 25 130 85 154 Thermal 136 | . 15 . . . . . 18 30 43 1 5 . 15 9 Explosive 1 | . . . . . 1 . . . . . . . . . Electromagnetic 40 | . 2 7 . 5 26 . . . . . . . . . Entropic 28 | . . . . . . . . . . . . . . 28 Robot Hit Streak 25 | 6 15 6 . 8 7 . 24 13 17 4 9 12 20 25 Robot Miss Streak 15 | 1 4 5 . 2 6 . 2 3 15 2 1 4 2 6 Penetration Max 1 | . . . . . . . . . 1 1 . 1 1 1 Secondary Targets 24 | . 1 1 . 1 . . 2 1 1 2 1 4 1 9 Max Gunslinging Chain 1 | . 1 1 . 1 . . 1 1 1 1 1 1 1 1 Shots Hit Robots 674 | 11 41 9 . 12 44 . 55 62 106 17 17 88 67 145 Core Hits 316 | 5 16 3 . 5 20 . 20 41 55 8 8 50 24 61 Critical Kills 3 | . . . . . . . . . 1 1 . . . 1 Critical Parts Destroyed 13 | . . . . . 1 . . 2 . . . 4 3 3 Critical Strikes 19 | . . 1 . . 1 . . 2 1 1 . 4 3 6 Destroy 15 | . . . . . 1 . . 1 1 1 . 4 3 4 Corrupt 1 | . . 1 . . . . . . . . . . . . Smash 1 | . . . . . . . . 1 . . . . . . Detonate 2 | . . . . . . . . . . . . . . 2 Melee Attacks 23 | . . . . . 8 3 4 8 . . . . . . Impact 23 | . . . . . 8 3 4 8 . . . . . . Slashing . | . . . . . . . . . . . . . . . Piercing . | . . . . . . . . . . . . . . . Sneak Attacks 2 | . . . . . 1 . . 1 . . . . . . Combat Hostiles . | . . . . . . . . . . . . . . . Follow-up Attacks . | . . . . . . . . . . . . . . . Damage Inflicted 18530 | 99 362 144 . 137 1012 . 944 2312 3877 434 366 2502 1666 4675 Guns 16996 | 99 362 144 . 137 614 . 944 2071 3698 434 366 2502 1666 3959 Cannons 167 | . . . . . . . . 137 30 . . . . . Explosions 942 | . . . . . 292 . . . . . . . . 650 Melee 198 | . . . . . 106 . . 92 . . . . . . Ramming 227 | . . . . . . . . 12 149 . . . . 66 Kinetic 14705 | 99 262 84 . 86 418 . 687 2066 3698 434 366 2502 1666 2337 Thermal 1147 | . 100 . . . 78 . 257 142 30 . . . . 540 Explosive 324 | . . . . . 214 . . . . . . . . 110 Electromagnetic 307 | . . 60 . 51 196 . . . . . . . . . Impact 198 | . . . . . 106 . . 92 . . . . . . Slashing . | . . . . . . . . . . . . . . . Piercing . | . . . . . . . . . . . . . . . Entropic 1622 | . . . . . . . . . . . . . . 1622 Highest Corruption 10 | . 1 1 1 1 . . . 1 2 2 2 2 . 10 Average Corruption 1 | . 1 1 1 1 . . . 1 1 2 2 2 . 7 Corruption Purged . | . . . . . . . . . . . . . . . Corruption Blocked . | . . . . . . . . . . . . . . . Effects 32 | . 1 . 1 1 . . . 2 10 4 4 1 . 8 Message Errors 12 | . . . . 1 . . . . 5 3 . . . 3 Matter Fused 4 | . . . . . . . . . 2 . 1 . . 1 Heat Flow Errors 5 | . . . . . . . . . 2 . 1 . . 2 Energy Discharges 2 | . . . 1 . . . . . . 1 . . . . Data Loss (minor) 2 | . . . . . . . . . . . 1 . . 1 Data Loss (major) 2 | . 1 . . . . . . 1 . . . . . . Misfires 2 | . . . . . . . . . 1 . . 1 . . Alerts 3 | . . . . . . . . 1 . . 1 . . 1 Overload Shots . | . . . . . . . . . . . . . . . Overflow Damage 295 | . . . . . 127 . . 94 11 . . . . 63 Projectiles 2 | . . . . . . . . 2 . . . . . . Explosions 104 | . . . . . 41 . . . . . . . . 63 Melee 189 | . . . . . 86 . . 92 11 . . . . . Knockbacks 2 | . . . . . . . . 1 . . . . . 1 Impact 1 | . . . . . . . . . . . . . . 1 Kinetic 1 | . . . . . . . . 1 . . . . . . Secondary . | . . . . . . . . . . . . . . . Self-Inflicted Damage 183 | . . . . . 94 . . . . . . . . 89 Shots 4 | . . . . . 3 . . . . . . . . 1 Rammed 22 | . . . . . . . . 3 7 . . . . 12 Targets Rammed 25 | . . . . . . . . 4 9 . . . . 12 Kicked . | . . . . . . . . . . . . . . . Crushed 3 | . . . . . . . . 1 2 . . . . . Highest Temperature 521 | . 40 . . . 396 . 258 228 521 216 250 392 329 471 Average Temperature 97 | . 15 . . . 127 . 101 66 87 77 70 130 101 135 Received Heat Transfer 1471 | . 144 . . . 180 . 342 70 102 . 6 61 187 379 Effects 18 | . . . . . 4 . . . 4 . . 1 1 8 Shutdowns 2 | . . . . . . . . . 1 . . . . 1 Energy Bleed 5 | . . . . . 1 . . . 1 . . 1 1 1 Interference 7 | . . . . . 3 . . . 1 . . . . 3 Matter Decay 2 | . . . . . . . . . 1 . . . . 1 Damage (minor) 2 | . . . . . . . . . . . . . . 2 Siege Activations 12 | . . . . . . . . . 1 . 2 4 2 3 Total Turns 183 | . . . . . . . . . 5 . 19 76 35 48 Longest Duration 38 | . . . . . . . . . 5 . 16 38 22 33 Robots Corrupted . | . . . . . . . . . . . . . . . Combat Hostiles . | . . . . . . . . . . . . . . . Parts Fried 8 | . . . . . . . . 3 4 . . 1 . . Impact Corruptions 4 | . . . . . 1 . . 2 1 . . . . . Robots Melted . | . . . . . . . . . . . . . . . Combat Hostiles . | . . . . . . . . . . . . . . . Parts Melted 1 | . . . . . . . . 1 . . . . . . Heat Transferred 1539 | . 225 . . . 100 . 518 259 37 . . . . 400 Parts Sabotaged 2 | . . . . . . . . . . . . . . 2 Parts Stolen . | . . . . . . . . . . . . . . . Parts Stripped . | . . . . . . . . . . . . . . . Power Chain Reactions 2 | . . . . . 2 . . . . . . . . . Missiles Intercepted . | . . . . . . . . . . . . . . . Alert | -11 -10 -10 -10 -9 -8 -7 -7 -6 -5 -5 -5 -5 -4 -4 ------- Run | Scr Mat Min Exi Min Mat Fac DSF Fac Fac Upp Upp War Pro Fac Peak Influence 705 | 15 162 81 . 80 409 213 311 587 370 . . . . 705 Initial 185 | . 9 11 . . 31 185 149 163 165 . . . . 44 Average 242 | 5 95 69 . 69 299 187 218 312 198 . . . . 358 Maximum Alert Level 3 | . . . . . 2 1 1 2 1 . . . . 3 Low Security (%) 43 | 100 100 100 . 100 11 93 43 12 59 . . . . 26 Level 1 41 | . . . . . 69 6 56 65 40 . . . . 6 Level 2 14 | . . . . . 18 . . 21 . . . . . 65 Level 3 . | . . . . . . . . . . . . . . 1 Level 4 . | . . . . . . . . . . . . . . . Level 5 . | . . . . . . . . . . . . . . . High Security . | . . . . . . . . . . . . . . . Max Security . | . . . . . . . . . . . . . . . Squads Dispatched 28 | . . . . . 3 . 1 7 10 . . . . 7 Investigation 10 | . . . . . 1 . . 5 3 . . . . 1 Extermination 4 | . . . . . . . . 1 3 . . . . . Reinforcement 9 | . . . . . 1 . 1 1 1 . . . . 5 Assault 2 | . . . . . 1 . . . . . . . . 1 Garrison 3 | . . . . . . . . . 3 . . . . . Intercept . | . . . . . . . . . . . . . . . Searches Triggered . | . . . . . . . . . . . . . . . Construction Impeded 1 | . . . . . . . . . . . . . . 1 Haulers Reinforced 1 | . . . . . . . . . 1 . . . . . Active Scanning Responses . | . . . . . . . . . . . . . . . Cargo Convoy Interrupts . | . . . . . . . . . . . . . . . Stealth | -11 -10 -10 -10 -9 -8 -7 -7 -6 -5 -5 -5 -5 -4 -4 --------- Run | Scr Mat Min Exi Min Mat Fac DSF Fac Fac Upp Upp War Pro Fac Distress Signals 4 | . . . . . 1 . . . . . . 1 . 2 Communications Jammed 10 | . . . . . . . . 3 7 . . . . . Distress Signals 10 | . . . . . . . . 3 7 . . . . . Times Spotted 199 | . 7 2 . 3 14 . 7 25 25 8 5 50 9 44 Peak Tracking Total 17 | . 3 2 . 3 5 . 4 5 4 5 3 11 4 17 Tactical Retreats 12 | . . . . . 2 . . 1 . 1 1 1 1 5 Traps | -11 -10 -10 -10 -9 -8 -7 -7 -6 -5 -5 -5 -5 -4 -4 ------- Run | Scr Mat Min Exi Min Mat Fac DSF Fac Fac Upp Upp War Pro Fac Traps Triggered 5 | . 1 . . . . . . . 3 . . . . 1 Indirectly . | . . . . . . . . . . . . . . . Trap Hack Attempts . | . . . . . . . . . . . . . . . Triggered . | . . . . . . . . . . . . . . . Disarmed . | . . . . . . . . . . . . . . . Reprogrammed . | . . . . . . . . . . . . . . . Reused . | . . . . . . . . . . . . . . . Traps Extracted . | . . . . . . . . . . . . . . . Installed . | . . . . . . . . . . . . . . . Triggered 16 | . . . . . . . . . . 1 . 15 . . Machines | -11 -10 -10 -10 -9 -8 -7 -7 -6 -5 -5 -5 -5 -4 -4 ---------- Run | Scr Mat Min Exi Min Mat Fac DSF Fac Fac Upp Upp War Pro Fac Machines Disabled 18 | . . . . . 5 . . 5 . . . 1 . 7 Max in Single Turn 2 | . . . . . 2 . . 1 . . . 1 . 2 Garrison Access 3 | . . . . . 1 . . 1 1 . . . . . Machines Sabotaged . | . . . . . . . . . . . . . . . Garrisons Compromised . | . . . . . . . . . . . . . . . Overloaded Fab Kills . | . . . . . . . . . . . . . . . Hacking | -11 -10 -10 -10 -9 -8 -7 -7 -6 -5 -5 -5 -5 -4 -4 --------- Run | Scr Mat Min Exi Min Mat Fac DSF Fac Fac Upp Upp War Pro Fac Machines Accessed 32 | . 3 . 1 . 4 3 . 8 9 . . 1 . 3 Terminals 19 | . 3 . . . 2 3 . 3 5 . . . . 3 Fabricators . | . . . . . . . . . . . . . . . Repair Stations . | . . . . . . . . . . . . . . . Recycling Units 4 | . . . . . . . . 3 1 . . . . . Scanalyzers 1 | . . . . . 1 . . . . . . . . . Garrison Access 6 | . . . . . 1 . . 2 3 . . . . . Total Hacks 88 | . 15 . 1 . 17 5 . 16 17 . . 1 . 16 Successful 39 | . 10 . 1 . 7 2 . 8 5 . . 1 . 5 Failed 48 | . 4 . . . 10 3 . 8 12 . . . . 11 Catastrophic 11 | . 1 . . . 1 . . 1 4 . . . . 4 Database Lockouts 1 | . 1 . . . . . . . . . . . . . Manual 60 | . 13 . 1 . 9 2 . 12 8 . . . . 15 Terminals 65 | . 15 . . . 10 5 . 9 10 . . . . 16 Fabricators . | . . . . . . . . . . . . . . . Repair Stations . | . . . . . . . . . . . . . . . Recycling Units 5 | . . . . . . . . 4 1 . . . . . Scanalyzers 3 | . . . . . 3 . . . . . . . . . Garrison Access 13 | . . . . . 4 . . 3 6 . . . . . Terminal Hacks 17 | . 5 . 1 . 2 2 . 3 1 . . 1 . 2 Robot Analysis 4 | . 3 . . . 1 . . . . . . . . . Prototype ID Bank 1 | . . . . . . 1 . . . . . . . . Open Door 1 | . . . . . . . . . . . . 1 . . Open DSF 1 | . . . . . . 1 . . . . . . . . Branch Access Points 3 | . . . . . . . . 1 1 . . . . 1 Terminal Index 1 | . . . . . . . . . . . . . . 1 Unreport Threat 2 | . 1 . . . . . . 1 . . . . . . Locate Traps 1 | . 1 . . . . . . . . . . . . . Recall Reinforcements 1 | . . . . . 1 . . . . . . . . . Zone Layout 1 | . . . . . . . . 1 . . . . . . EX-Prototype ID Bank 1 | . . . 1 . . . . . . . . . . . Fabricator Hacks . | . . . . . . . . . . . . . . . Repair Station Hacks . | . . . . . . . . . . . . . . . Recycling Unit Hacks . | . . . . . . . . . . . . . . . Scanalyzer 3 | . . . . . 3 . . . . . . . . . Insert Component 1 | . . . . . 1 . . . . . . . . . Analyze 2 | . . . . . 2 . . . . . . . . . Garrison Access Hacks 2 | . . . . . . . . 1 1 . . . . . Seal Access 2 | . . . . . . . . 1 1 . . . . . Unauthorized Hacks 17 | . 5 . . . 2 . . 4 3 . . . . 3 Terminals 13 | . 5 . . . 2 . . 1 2 . . . . 3 Track 2 | . 2 . . . . . . . . . . . . . Assimilate 2 | . . . . . 1 . . . . . . . . 1 Botnet 8 | . 2 . . . 1 . . 1 2 . . . . 2 Operators 1 | . 1 . . . . . . . . . . . . . Fabricators . | . . . . . . . . . . . . . . . Repair Stations . | . . . . . . . . . . . . . . . Recycling Units 4 | . . . . . . . . 3 1 . . . . . Tunnel 4 | . . . . . . . . 3 1 . . . . . Scanalyzers . | . . . . . . . . . . . . . . . Garrison Access . | . . . . . . . . . . . . . . . Data Cores Recovered 2 | . . . . . . . . 1 1 . . . . . Used . | . . . . . . . . . . . . . . . Hacking Detections 24 | . 3 . . . 4 2 . 4 8 . . . . 3 Full Trace Events 6 | . . . . . 1 . . 2 2 . . . . 1 Feedback Events . | . . . . . . . . . . . . . . . Feedback Blocked . | . . . . . . . . . . . . . . . Robot Schematics Acquired . | . . . . . . . . . . . . . . . Robots Built . | . . . . . . . . . . . . . . . Authchips . | . . . . . . . . . . . . . . . Time . | . . . . . . . . . . . . . . . Total Robot Build Rating . | . . . . . . . . . . . . . . . Part Schematics Acquired 1 | . . . . . 1 . . . . . . . . . Parts Built . | . . . . . . . . . . . . . . . Authchips . | . . . . . . . . . . . . . . . Time . | . . . . . . . . . . . . . . . Total Part Build Rating . | . . . . . . . . . . . . . . . Parts Repaired . | . . . . . . . . . . . . . . . Time . | . . . . . . . . . . . . . . . Parts Recycled . | . . . . . . . . . . . . . . . Recycled Matter . | . . . . . . . . . . . . . . . Retrieved Matter . | . . . . . . . . . . . . . . . Retrieved Components . | . . . . . . . . . . . . . . . Parts Scanalyzed 1 | . . . . . 1 . . . . . . . . . Part Schematics Acquired 1 | . . . . . 1 . . . . . . . . . Parts Damaged . | . . . . . . . . . . . . . . . Bothacking | -11 -10 -10 -10 -9 -8 -7 -7 -6 -5 -5 -5 -5 -4 -4 ------------ Run | Scr Mat Min Exi Min Mat Fac DSF Fac Fac Upp Upp War Pro Fac Used RIF Installer . | . . . . . . . . . . . . . . . Robots Hacked . | . . . . . . . . . . . . . . . Non-combat . | . . . . . . . . . . . . . . . Combat . | . . . . . . . . . . . . . . . Robot Hacks Applied . | . . . . . . . . . . . . . . . Relay Couplers Released 1 | . . . . . 1 . . . . . . . . . Machine Destruction 1 | . . . . . 1 . . . . . . . . . Fabnet Peak Effective % . | . . . . . . . . . . . . . . . Robots Rewired . | . . . . . . . . . . . . . . . Allies Hacked . | . . . . . . . . . . . . . . . Hacks Repelled . | . . . . . . . . . . . . . . . Allies | -11 -10 -10 -10 -9 -8 -7 -7 -6 -5 -5 -5 -5 -4 -4 -------- Run | Scr Mat Min Exi Min Mat Fac DSF Fac Fac Upp Upp War Pro Fac Total Allies 2 | . . . . . 1 . . . . . . . . 1 Largest Group 1 | . . . . . 1 1 1 1 . . . . . 1 Highest-Rated Group 10 | . . . . . 10 10 10 10 . . . . . 10 Highest-Rated Ally 10 | . . . . . 10 10 10 10 . . . . . 10 Total Orders 8 | . . . . . . . 6 2 . . . . . . STAY 4 | . . . . . . . 3 1 . . . . . . FOLLOW 4 | . . . . . . . 3 1 . . . . . . Ally Attacks . | . . . . . . . . . . . . . . . Total Damage . | . . . . . . . . . . . . . . . Kills . | . . . . . . . . . . . . . . . Allies Corrupted . | . . . . . . . . . . . . . . . Allies Melted . | . . . . . . . . . . . . . . . Intel | -11 -10 -10 -10 -9 -8 -7 -7 -6 -5 -5 -5 -5 -4 -4 ------- Run | Scr Mat Min Exi Min Mat Fac DSF Fac Fac Upp Upp War Pro Fac Robot Analysis Total 4 | . 3 . . . 1 . . . . . . . . . Derelict Logs Recovered 7 | . . 1 . 2 . . . . . . 1 . 3 . Drone Launches . | . . . . . . . . . . . . . . . Drone Recoveries . | . . . . . . . . . . . . . . . Exploration | -11 -10 -10 -10 -9 -8 -7 -7 -6 -5 -5 -5 -5 -4 -4 ------------- Run | Scr Mat Min Exi Min Mat Fac DSF Fac Fac Upp Upp War Pro Fac Turns Passed 8457 | 71 313 53 230 167 716 234 226 1369 1929 336 467 1122 620 604 Spaces Moved 4843 | 48 218 40 250 134 497 182 75 705 985 187 253 586 277 406 Core 277 | 14 . . . . . . . . . . . . . 263 Treads 3180 | . . . . . . . 48 705 985 187 253 586 277 139 Legs . | . . . . . . . . . . . . . . . Wheels 1386 | 34 218 40 250 134 497 182 27 . . . . . . 4 Hover . | . . . . . . . . . . . . . . . Flight . | . . . . . . . . . . . . . . . Fastest Speed 50 | 50 80 80 80 95 95 115 115 160 160 160 163 163 163 50 Average Speed 138 | 71 80 80 90 95 107 115 146 160 160 162 163 163 183 89 Slowest Speed 250 | 80 80 80 95 95 115 115 250 160 160 163 163 163 243 242 Overloaded Moves . | . . . . . . . . . . . . . . . Propulsion Burnouts . | . . . . . . . . . . . . . . . Robots Hopped . | . . . . . . . . . . . . . . . Cave-ins Triggered . | . . . . . . . . . . . . . . . Exploration Rate (%) 41 | 4 44 9 64 42 36 9 85 25 34 45 52 89 66 13 Regions Visited 14 Branch Regions 7 Pre-discovered Areas 5 | . . . . . . . . 3 1 . . . 1 . Known Exits Taken 4 | . . . . . 1 1 . . 1 . . . 1 . Unknown Exits Taken 9 | 1 1 1 1 1 . . . 1 . 1 1 1 . . Scrap Searched 4 | . . 1 . 1 . . . . . . 1 . 1 . Spaces Dug 109 | . 2 . . . 6 3 2 31 39 1 5 . 15 5 Terrain Destroyed 224 | . 2 . . . 14 3 2 34 56 4 5 5 22 77 Melee 18 | . . . . . 6 3 2 7 . . . . . . Projectile 137 | . 2 . . . . . . 27 56 4 5 5 22 16 AOE 68 | . . . . . 8 . . . . . . . . 60 Terrain Rammed . | . . . . . . . . . . . . . . . Walls Destroyed . | . . . . . . . . . . . . . . . Machines Disabled . | . . . . . . . . . . . . . . . Actions | -11 -10 -10 -10 -9 -8 -7 -7 -6 -5 -5 -5 -5 -4 -4 --------- Run | Scr Mat Min Exi Min Mat Fac DSF Fac Fac Upp Upp War Pro Fac Total 5993 | 70 291 46 255 157 620 200 153 864 1242 205 290 705 334 561 Wait 179 | . 7 . . . 6 . . 10 53 . 13 63 6 21 Move 4829 | 47 217 39 249 133 496 181 74 704 984 186 252 585 276 406 Hop . | . . . . . . . . . . . . . . . Pick Up 111 | 9 6 . 1 6 23 4 11 15 24 . . 3 1 8 Fast Attach 52 | 5 3 . . . 4 1 4 2 7 . 4 5 . 17 Attach 58 | 2 5 . . 3 7 3 5 6 12 . . 2 . 13 Detach 12 | . 1 . 2 . . 1 1 3 2 . . 1 . 1 Swap 222 | . 8 . 2 3 25 4 20 39 50 11 10 13 19 18 Drop 108 | . 8 . 1 3 23 3 16 15 13 . 1 7 . 18 Fire 374 | 7 36 7 . 9 28 . 18 58 88 8 10 26 32 47 Melee 23 | . . . . . 8 3 4 8 . . . . . . Ram 9 | . . . . . . . . . . . . . . 9 Kick . | . . . . . . . . . . . . . . . Crush 16 | . . . . . . . . 4 9 . . . . 3 Escape Stasis . | . . . . . . . . . . . . . . . Rewire . | . . . . . . . . . . . . . . . Trap . | . . . . . . . . . . . . . . . Miscellaneous . | . . . . . . . . . . . . . . . Route ------- -11/Scrapyard -10/Materials (discovered 3 exits: [*Mat] / [*Min x2]) -10/Mines -10/Exiles (discovered 2 exits: [*Min x2]) -9/Mines -8/Materials (discovered 3 exits: *Fac x2 / Sto) -7/Factory -7/DSF -6/Factory (discovered 3 exits: *Fac / *Low x2) -5/Factory (discovered 4 exits: *Fac x2 / *Upp x2) -5/Upper Caves -5/Upper Caves -5/Warlord -4/Proximity Caves -4/Factory (discovered 6 exits: [*Res] / *Upp x2 / Ext x2 / *Arm) History --------- Turn | Location | Event 13 | -11/Scrapyard | Discovered new exit (range 16) 72 | -11/Scrapyard | Entered Materials 72 | -10/Materials | Discovered new exit (range 8) 270 | -10/Materials | Discovered new exit (range 13) 309 | -10/Materials | Build established: Mutant 326 | -10/Materials | Discovered new exit (range 8) 329 | -10/Materials | Central database locked down 385 | -10/Materials | Entered Mines 418 | -10/Mines | Learned Materials garrison access intel 435 | -10/Mines | Deemed a non-threat by the Exiles lab entrance 435 | -10/Mines | Discovered new exit (range 5) 438 | -10/Mines | Entered Exiles 449 | -10/Exiles | Discovered new exit (range 15) 459 | -10/Exiles | Met 8R-AWN 472 | -10/Exiles | Met EX-HEX 538 | -10/Exiles | Met EX-BIN 548 | -10/Exiles | Aligned with FarCom system 549 | -10/Exiles | Given EX-Vault access code 571 | -10/Exiles | Opened EX-Vault 578 | -10/Exiles | Found XL Autogun Array 598 | -10/Exiles | Warned to stay clear of 0b10 Research branches 625 | -10/Exiles | Met EX-DEC 660 | -10/Exiles | Discovered new exit (range 10) 668 | -10/Exiles | Left Exiles lab with XL Autogun Array 668 | -10/Exiles | Entered Mines 673 | -9/Mines | Core integrity fell below 50% 722 | -9/Mines | Received a Rocket Launcher from a helpful Derelict 744 | -9/Mines | Learned 4 Materials zone layouts 824 | -9/Mines | Discovered new exit (range 13) 835 | -9/Mines | Entered Materials 835 | -8/Materials | Evolved 4 slots: Propulsion x1, Utility x2, Weapon x1 836 | -8/Materials | Identified exit to Factory 837 | -8/Materials | Identified exit to Storage 838 | -8/Materials | Loaded intel: 1 garrison access location 1459 | -8/Materials | Discovered exit to Factory (range 11) 1551 | -8/Materials | Entered Factory 1551 | -7/Factory | Accompanied by 1 ally 1551 | -7/Factory | Evolved 2 slots: Utility x1, Weapon x1 1781 | -7/Factory | Identified exit to DSF 1785 | -7/Factory | Entered DSF 1785 | -7/DSF | Accompanied by 1 ally 1833 | -7/DSF | Additional patrols routed to DSF 1933 | -7/DSF | Discovered new exit (range 14) 2011 | -7/DSF | Entered Factory 2011 | -6/Factory | Accompanied by 1 ally 2011 | -6/Factory | Evolved 2 slots: Utility x1, Weapon x1 2149 | -6/Factory | Build established: Scavenger-Assassin 2357 | -6/Factory | Discovered new exit (range 8) 2824 | -6/Factory | Discovered new exit (range 4) 2916 | -6/Factory | Build established: Mutant 3161 | -6/Factory | Identified exit to Lower Caves 3380 | -6/Factory | Entered another Factory area 3380 | -5/Factory | Evolved 2 slots: Propulsion x1, Utility x1 3532 | -5/Factory | Discovered new exit (range 12) 3550 | -5/Factory | Identified exit to Upper Caves 3821 | -5/Factory | Discovered new exit (range 10) 4303 | -5/Factory | Identified exit to Factory 5154 | -5/Factory | Discovered exit to Factory (range 9) 5309 | -5/Factory | Entered Upper Caves 5634 | -5/Upper Caves | Build established: Scavenger-Skirmisher 5637 | -5/Upper Caves | Discovered new exit (range 5) 5645 | -5/Upper Caves | Entered another Upper Caves area 5834 | -5/Upper Caves | Learned Factory stockpile data 6089 | -5/Upper Caves | Discovered new exit (range 15) 6112 | -5/Upper Caves | Entered Warlord 6152 | -5/Warlord | Discovered new exit (range 16) 6218 | -5/Warlord | System corruption cleaned by Quarantine Array 6411 | -5/Warlord | Found Prototype Device 6411 | -5/Warlord | Identified Minesniffer Drone Bay 6713 | -5/Warlord | Met Warlord 6738 | -5/Warlord | Warlord's base attacked by MAIN.C 6841 | -5/Warlord | Found Prototype Energy Gun 6841 | -5/Warlord | Identified Vortex Shotgun 6847 | -5/Warlord | Found Vortex Shotgun 6854 | -5/Warlord | Found Prototype Energy Cannon 6854 | -5/Warlord | Identified Vortex Driver 7088 | -5/Warlord | Warlord forces counterattacked 7182 | -5/Warlord | Spotted Striker 7187 | -5/Warlord | Destroyed Striker 7234 | -5/Warlord | Entered Proximity Caves 7257 | -4/Proximity Caves | Learned Research terminal intel 7271 | -4/Proximity Caves | Learned Research stockpile data 7281 | -4/Proximity Caves | Learned location of Armory (-4) 7542 | -4/Proximity Caves | Spotted B-86 Titan 7846 | -4/Proximity Caves | Discovered exit to Factory (range 5) 7854 | -4/Proximity Caves | Entered Factory 7854 | -4/Factory | Evolved 2 slots: Propulsion x1, Utility x1 7898 | -4/Factory | Identified exit to Upper Caves 7898 | -4/Factory | Identified exit to Extension 7898 | -4/Factory | Identified exit to Armory 7996 | -4/Factory | Discovered new exit (range 12) 8104 | -4/Factory | First assault squad dispatched 8233 | -4/Factory | Destroyed 8 combat bots 8279 | -4/Factory | Core integrity fell below 50% 8306 | -4/Factory | Lost 20 parts (1p8n6u5w) 8407 | -4/Factory | System corruption reached 10% 8408 | -4/Factory | Core integrity fell below 20% 8458 | -4/Factory | Destroyed by Y-72 Warden with Railgun Last Messages --------------- 08443_ Slug penetrates Wall. 08444_ Acquired Hvy. Machine Gun. 08446_ HV Slug penetrates Y-72 Warden. 08446_ Y-72 Warden suffers critical hit (Destroy). 08446_ HV Slug penetrates Y-72 Warden. 08446_ Penetrated by Slug. 08449_ Hyp. Coil Gun destroyed. 08449_ HV Slug penetrates Machine. 08449_ HV Slug penetrates Wall. 08451_ Hvy. Machine Gun destroyed. 08452_ System corrupted: Matter fused (-9). 08453_ HV Slug penetrates Machine. 08453_ HV Slug penetrates Y-72 Warden. 08453_ G-67 Veteran suffers critical hit (Destroy). 08453_ G-67 Veteran destroyed. 08453_ S-27 Virus destroyed. 08454_ Slug penetrates Y-72 Warden. 08454_ Slug penetrates Machine. 08456_ HV Slug penetrates Y-72 Warden. 08456_ Y-72 Warden suffers critical hit (Destroy). Map ----- +----------------------------------------------------+ | ??????????????????????????????# """" #? +??????? | | ??????????????????????????????# """" #? #??????? | | ??????????????????????????????# """" ## ##?????? | | ??????????????????????????????# """" / #?????? | | ??????????????????????????????# # #?????? | | ??????????????????????????????# ]] + #?????? | | ??????????????????????????????# ]] # #?????? | | ??????????????????????????????# ] # #?????? | | ????????????????????"?????????# # #?????? | | ???????????????????""?????????#= # #?????? | | ???????????????????? ????????# # #?????? | | ?????????????########+######??# [# #?????? | | ?????????????" ? """""??#! # #?????? | | ?????????????? "[["#?######## #?????? | | ??????????????? [["#??####??# #?????? | | ???????????????"" """ [["#??#T"#??# #?????? | | ???????????????## ##" """#### "#### ###+### | | ??????????? "# #" "# | | ??????????? + %= | | ??????????? > = + g | | ??????????? Y *%[ + h b | | ???????????????# #" Y! "# x x ^ | | ???????????????## ##" Y"" ##################+### | | ???????????? """ """ g=%"#??????????????# | | ???????????[ Y gs="#??????????????# """ | | ????????????" "@ "#??????????????# ! """ | | ????????????"" "" u #??????????????# """ | | ????????????#########+####;##??????????????# """ | | ???????????????????? ????##???????????????# | | ???????????????g???""??????????????????????# """ | | ???????????????????????????????????????????# """ | | ???????????????????????????????????????????# """ | | ???????????????????????????????????????????# """ | | ??????????????????????????????????g????????# | | ???????????????????????????????????????????# | | ?????????????????????????????????g?????????####### | | ?????????????????????????????????????????????????? | | ?????????????????????????????????????????????????? | | ?????????????????????????????????????????????????? | | ?????????????????????????????????????????????????? | | ?????????????????????????????????????????????????? | | ?????????????????????????????????????????????????? | | ?????????????????????????????????????????????????? | | ?????????????????????????????????????????????????? | | ?????????????????????????????????????????????????? | | ?????????????????????????????????????????????????? | | ?????????????????????????????????????????????????? | | ?????????????????????????????????????????????????? | | ?????????????????????????????????????????????????? | | ?????????????????????????????????????????????????? | +----------------------------------------------------+ Best States ------------- Heat Dissipation 70 Energy Generation 21 Energy Capacity 325 Matter Stores 300 Matter Capacity 300 Sight Range 18 Terrain Scan Range 20 Terrain Scan Density 85 Jamming Range 14 Armor Coverage 300 Resistance: KI 20 Weapon Cycling 30 Evasion (%) 50 Targeting Accuracy 16 Launcher Accuracy 40 Recoil Reduction 5 Kinecelleration 40 Salvage Targeting 8 Offensive Hacking 12 Defensive Hacking 14 Item Schematics ----------------- Weapon Cycler | -8/Materials | Scanalyzed Robot Schematics ------------------ None Fabricated ------------ Nothing Alien Tech Used ----------------- None Achievements -------------- None Challenges ------------ None Game ------ Seed CombatGreatLeg Manual? 0 Play Time 02:17:03 Cumulative 696.0 hours Start 2022.06.19 @ 22:17:52 End 2022.06.20 @ 01:03:02 Sessions 3 Manual Loads 0 Difficulty Rogue Special Mode None Game No. 362 Rogue 235 Adventurer 125 Explorer 2 Win Type - Total 79 Types 68/4/4/1/1/0/0/0/1 Lore% 81 Gallery% 88 Achievement% 75 Wizard Run 0 Options --------- ASCII 0 Keyboard 1 Movement Numpad Keybinds 0 Fullscreen 1 Font 36/TerminusFine Map View 76x50 Tactical HUD 1 Map Filters NONE Filters NONE Steam 1 RUN: 5dbdfc3d-a507-4401-98c7-ad011901b001